fUSD/lending_fUSD_20250612
["ID","MTS","AMOUNT","RATE_DAILY","PERIOD"]
[365488889,1749701456055,-171.75193413,0.00019506,2]
[365488890,1749701456064,-771.95,0.00019506,2]
[365488891,1749701456073,-751.34,0.00019506,2]
[365488892,1749701456083,-804.43,0.00019506,2]
[365488893,1749701456092,-1396.4,0.00019506,2]
[365488894,1749701456104,-965.07,0.00019506,2]
[365488895,1749701456114,-490.0,0.00019506,2]
[365488896,1749701456124,-1032.39,0.00019506,2]
[365488897,1749701456134,-1430.21,0.00019506,2]
[365488898,1749701456144,-162.259179,0.00019506,2]
[365488899,1749701456154,-490.0,0.00019506,2]
[365488900,1749701456165,-490.0,0.00019506,2]
[365488901,1749701456177,-569.77,0.00019506,2]
[365488902,1749701456187,-739.0,0.00019506,2]
[365488903,1749701456197,-1148.73,0.00019506,2]
[365488904,1749701456207,-1239.11,0.00019506,2]
[365488905,1749701456219,-650.53,0.00019506,2]
[365488906,1749701456229,-755.62,0.00019506,2]
[365488907,1749701456239,-817.81,0.00019506,2]
[365488908,1749701456249,-173.7374733,0.00019506,2]
[365488909,1749701456258,-156.619584,0.00019506,2]
[365488910,1749701456267,-490.0,0.00019506,2]
[365488911,1749701456278,-984.15,0.00019506,2]
[365488912,1749701456287,-1260.55,0.00019506,2]
[365488913,1749701456296,-490.0,0.00019506,2]
[365488914,1749701456305,-490.0,0.00019506,2]
[365488915,1749701456315,-685.5,0.00019506,2]
[365488916,1749701456324,-490.0,0.00019506,2]
[365488917,1749701456333,-490.0,0.00019506,2]
[365488918,1749701456343,-1990.3,0.00019506,2]
[365488919,1749701456352,-793.56,0.00019506,2]
[365488920,1749701456362,-490.0,0.00019506,2]
[365488921,1749701456584,-1050.4,0.00019506,2]
[365488922,1749701456594,-469.67895057,0.00019506,2]
[365488923,1749701456604,-943.03,0.00019506,2]
[365488924,1749701456613,-935.42,0.00019506,2]
[365488925,1749701456624,-822.35,0.00019506,2]
[365488926,1749701456633,-490.0,0.00019506,2]
[365488927,1749701456643,-1267.0,0.00019506,2]
[365488928,1749701456652,-1040.55,0.00019506,2]
[365488929,1749701456663,-490.0,0.00019506,2]
[365488930,1749701456673,-735.06,0.00019506,2]
[365488931,1749701456683,-490.0,0.00019506,2]
[365488932,1749701456693,-1000.0,0.00019506,2]
[365488933,1749701456702,-931.18,0.00019506,2]
[365488934,1749701456713,-1187.28,0.00019506,2]
[365488935,1749701456723,-1139.71,0.00019506,2]
[365488936,1749701456732,-567.44,0.00019506,2]
[365488937,1749701456744,-490.0,0.00019506,2]
[365488938,1749701456753,-683.77,0.00019506,2]
[365488939,1749701456763,-490.0,0.00019506,2]
[365488940,1749701456774,-874.92,0.00019506,2]
[365488941,1749701456784,-490.0,0.00019506,2]
[365488942,1749701456794,-490.0,0.00019506,2]
[365488943,1749701456804,-490.0,0.00019506,2]
[365488944,1749701456814,-708.4,0.00019506,2]
[365488945,1749701456824,-490.0,0.00019506,2]
[365488946,1749701456834,-490.0,0.00019506,2]
[365488947,1749701456844,-490.0,0.00019506,2]
[365488948,1749701456854,-490.0,0.00019506,2]
[365488949,1749701456864,-490.0,0.00019506,2]
[365488950,1749701456874,-572.57743239,0.00019506,2]
[365488951,1749701456884,-981.97,0.00019506,2]
[365488952,1749701456894,-1865.9,0.00019506,2]
[365488953,1749701456904,-1010.29,0.00019506,2]
[365488954,1749701456914,-1347.37,0.00019506,2]
[365488955,1749701456924,-490.0,0.00019506,2]
[365488956,1749701456936,-1205.2,0.00019506,2]
[365488957,1749701456947,-629.57,0.00019506,2]
[365488958,1749701456956,-961.68,0.00019506,2]
[365488959,1749701456965,-490.0,0.00019506,2]
[365488960,1749701456974,-490.0,0.00019506,2]
[365488961,1749701456984,-1463.15,0.00019506,2]
[365488962,1749701456994,-490.0,0.00019506,2]
[365488963,1749701457005,-1403.9,0.00019506,2]
[365488964,1749701457015,-490.0,0.00019506,2]
[365488965,1749701457028,-1671.18,0.00019506,2]
[365488966,1749701457038,-994.43,0.00019506,2]
[365488967,1749701457047,-3231.15,0.00019506,2]
[365488968,1749701457057,-1057.81,0.00019506,2]
[365488969,1749701457067,-3808.34,0.00019506,2]
[365488970,1749701457078,-1190.18,0.00019506,2]
[365488971,1749701457087,-1019.36,0.00019506,2]
[365488972,1749701457100,-225.30614558,0.00019506,2]
[365488973,1749701457109,-859.86,0.00019506,2]
[365488974,1749701457119,-790.2,0.00019506,2]
[365488975,1749701457128,-918.27,0.00019506,2]
[365488976,1749701457139,-490.0,0.00019506,2]
[365488977,1749701457148,-1971.29,0.00019506,2]
[365488978,1749701457158,-4621.41,0.00019506,2]
[365488979,1749701457168,-2777.65,0.00019506,2]
[365488980,1749701457178,-490.0,0.00019506,2]
[365488981,1749701457188,-1071.27,0.00019506,2]
[365488982,1749701457199,-518.34,0.00019506,2]
[365488983,1749701457208,-642.65,0.00019506,2]
[365488984,1749701457218,-490.0,0.00019506,2]
[365488985,1749701457228,-1358.65,0.00019506,2]
[365488986,1749701457238,-2804.79,0.00019506,2]
[365488987,1749701457249,-1173.98,0.00019506,2]
[365488988,1749701457259,-539.88,0.00019506,2]
[365488989,1749701457269,-490.0,0.00019506,2]
[365488990,1749701457279,-490.0,0.00019506,2]
[365488991,1749701457290,-2528.5,0.00019506,2]
[365488992,1749701457300,-1821.78,0.00019506,2]
[365488993,1749701457310,-1026.65,0.00019506,2]
[365488994,1749701457320,-1081.48,0.00019506,2]
[365488995,1749701457329,-685.42,0.00019506,2]
[365488996,1749701457338,-1097.12,0.00019506,2]
[365488997,1749701457349,-1257.65,0.00019506,2]
[365488998,1749701457358,-699.42,0.00019506,2]
[365488999,1749701457368,-704.62,0.00019506,2]
[365489000,1749701457378,-490.0,0.00019506,2]
[365489001,1749701457387,-155.663536,0.00019506,2]
[365489002,1749701457397,-380.5491299,0.00019506,2]
[365489003,1749701457406,-625.7494226,0.00019506,2]
[365489004,1749701457416,-490.0,0.00019506,2]
[365489005,1749701457425,-882.41,0.00019506,2]
[365489006,1749701457434,-1922.36,0.00019506,2]
[365489007,1749701457445,-562.78,0.00019506,2]
[365489008,1749701457455,-480.0,0.00019506,2]
[365489009,1749701457465,-490.0,0.00019506,2]
[365489010,1749701457475,-490.0,0.00019506,2]
[365489011,1749701457486,-4718.14,0.00019506,2]
[365489012,1749701457495,-13072.36,0.00019506,2]
[365489013,1749701457504,-1321.93,0.00019506,2]
[365489014,1749701457514,-490.0,0.00019506,2]
[365489015,1749701457523,-762.52,0.00019506,2]
[365489016,1749701457533,-490.0,0.00019506,2]
[365489017,1749701457543,-2141.41,0.00019506,2]
[365489018,1749701457552,-490.0,0.00019506,2]
[365489019,1749701457562,-1410.05,0.00019506,2]
[365489020,1749701457571,-1408.36,0.00019506,2]
[365489021,1749701457581,-1128.49,0.00019506,2]
[365489022,1749701457590,-490.0,0.00019506,2]
[365489023,1749701457600,-469.82144364,0.00019506,2]
[365489024,1749701457609,-693.45,0.00019506,2]
[365489025,1749701457618,-1145.9,0.00019506,2]
[365489026,1749701457627,-1533.5,0.00019506,2]
[365489027,1749701457637,-2448.82,0.00019506,2]
[365489028,1749701457646,-1029.29,0.00019506,2]
[365489029,1749701457656,-490.0,0.00019506,2]
[365489030,1749701457665,-490.0,0.00019506,2]
[365489031,1749701457674,-490.0,0.00019506,2]
[365489032,1749701457684,-151.158857,0.00019506,2]
[365489033,1749701457694,-893.71,0.00019506,2]
[365489034,1749701457704,-561.33,0.00019506,2]
[365489035,1749701457714,-568.07,0.00019506,2]
[365489036,1749701457724,-490.0,0.00019506,2]
[365489037,1749701457733,-643.53,0.00019506,2]
[365489038,1749701457743,-592.85,0.00019506,2]
[365489039,1749701457754,-490.0,0.00019506,2]
[365489040,1749701457764,-1035.98,0.00019506,2]
[365489041,1749701457773,-822.77,0.00019506,2]
[365489042,1749701457783,-535.06,0.00019506,2]
[365489043,1749701457793,-490.0,0.00019506,2]
[365489044,1749701457802,-490.0,0.00019506,2]
[365489045,1749701457811,-5421.08,0.00019506,2]
[365489046,1749701457821,-825.03,0.00019506,2]
[365489047,1749701457830,-542.96,0.00019506,2]
[365489048,1749701457840,-1910.84,0.00019506,2]
[365489049,1749701457850,-1109.86,0.00019506,2]
[365489050,1749701457860,-692.91,0.00019506,2]
[365489051,1749701457870,-990.47,0.00019506,2]
[365489052,1749701457880,-1325.15,0.00019506,2]
[365489053,1749701457890,-3579.5,0.00019506,2]
[365489054,1749701457901,-710.1,0.00019506,2]
[365489055,1749701457910,-1312.1,0.00019506,2]
[365489056,1749701457920,-3860.13,0.00019506,2]
[365489057,1749701457930,-644.74,0.00019506,2]
[365489058,1749701457939,-490.0,0.00019506,2]
[365489059,1749701457949,-490.0,0.00019506,2]
[365489060,1749701457959,-490.0,0.00019506,2]
[365489061,1749701457969,-490.0,0.00019506,2]
[365489062,1749701457978,-762.77,0.00019506,2]
[365489063,1749701457988,-490.0,0.00019506,2]
[365489064,1749701457998,-490.0,0.00019506,2]
[365489065,1749701458007,-490.0,0.00019506,2]
[365489066,1749701458017,-490.0,0.00019506,2]
[365489067,1749701458026,-1136.81,0.00019506,2]
[365489068,1749701458036,-4912.12,0.00019506,2]
[365489069,1749701458046,-15982.41,0.00019506,2]
[365489070,1749701458056,-2287.66,0.00019506,2]
[365489071,1749701458065,-694.84,0.00019506,2]
[365489072,1749701458075,-3750.16,0.00019506,2]
[365489073,1749701458084,-490.0,0.00019506,2]
[365489074,1749701458096,-490.0,0.00019506,2]
[365489075,1749701458106,-543.42,0.00019506,2]
[365489076,1749701458115,-490.0,0.00019506,2]
[365489077,1749701458125,-490.0,0.00019506,2]
[365489078,1749701458135,-1580.73,0.00019506,2]
[365489079,1749701458145,-696.13,0.00019506,2]
[365489080,1749701458154,-490.0,0.00019506,2]
[365489081,1749701458164,-2540.13,0.00019506,2]
[365489082,1749701458174,-490.0,0.00019506,2]
[365489083,1749701458183,-490.0,0.00019506,2]
[365489084,1749701458193,-830.98,0.00019506,2]
[365489085,1749701458202,-1017.66,0.00019506,2]
[365489086,1749701458212,-490.0,0.00019506,2]
[365489087,1749701458221,-1745.65,0.00019506,2]
[365489088,1749701458231,-385.589712,0.00019506,2]
[365489089,1749701458240,-403.53,0.00019506,2]
[365489090,1749701458250,-490.0,0.00019506,2]
[365489091,1749701458259,-3257.57,0.00019506,2]
[365489092,1749701458268,-490.0,0.00019506,2]
[365489093,1749701458278,-3652.45,0.00019506,2]
[365489094,1749701458288,-12049.78,0.00019506,2]
[365489095,1749701458297,-2494.0,0.00019506,2]
[365489096,1749701458306,-598.58,0.00019506,2]
[365489097,1749701458316,-720.26,0.00019506,2]
[365489098,1749701458325,-909.48,0.00019506,2]
[365489099,1749701458335,-2425.84,0.00019506,2]
[365489100,1749701458345,-480.0,0.00019506,2]
[365489101,1749701458354,-490.0,0.00019506,2]
[365489102,1749701458364,-490.0,0.00019506,2]
[365489103,1749701458373,-2171.13,0.00019506,2]
[365489104,1749701458384,-313.56475291,0.00019506,2]
[365489105,1749701458394,-4500.73,0.00019506,2]
[365489106,1749701458403,-704.4,0.00019506,2]
[365489107,1749701458413,-955.3,0.00019506,2]
[365489108,1749701458422,-490.0,0.00019506,2]
[365489109,1749701458432,-937.74,0.00019506,2]
[365489110,1749701458442,-1205.95,0.00019506,2]
[365489111,1749701458452,-490.0,0.00019506,2]
[365489112,1749701458461,-3951.3,0.00019506,2]
[365489113,1749701458471,-1721.67,0.00019506,2]
[365489114,1749701458481,-2067.1,0.00019506,2]
[365489115,1749701458491,-490.0,0.00019506,2]
[365489116,1749701458500,-150.039335,0.00019506,2]
[365489117,1749701458510,-557.89,0.00019506,2]
[365489118,1749701458519,-881.8,0.00019506,2]
[365489119,1749701458530,-2414.18,0.00019506,2]
[365489120,1749701458540,-832.0,0.00019506,2]
[365489121,1749701458549,-624.71,0.00019506,2]
[365489122,1749701458559,-856.08,0.00019506,2]
[365489123,1749701458569,-886.03,0.00019506,2]
[365489124,1749701458578,-1086.63,0.00019506,2]
[365489125,1749701458587,-2648.99,0.00019506,2]
[365489126,1749701458597,-638.87,0.00019506,2]
[365489127,1749701458606,-1621.39,0.00019506,2]
[365489128,1749701458615,-490.0,0.00019506,2]
[365489129,1749701458625,-4895.25,0.00019506,2]
[365489130,1749701458634,-834.34,0.00019506,2]
[365489131,1749701458644,-783.0,0.00019506,2]
[365489132,1749701458654,-628.35,0.00019506,2]
[365489133,1749701458664,-450.0,0.00019506,2]
[365489134,1749701458673,-854.93,0.00019506,2]
[365489135,1749701458683,-490.0,0.00019506,2]
[365489136,1749701458692,-5602.74,0.00019506,2]
[365489137,1749701458701,-4512.56,0.00019506,2]
[365489138,1749701458711,-1017.78,0.00019506,2]
[365489139,1749701458720,-1227.55,0.00019506,2]
[365489140,1749701458729,-490.0,0.00019506,2]
[365489141,1749701458738,-293.60156498,0.00019506,2]
[365489142,1749701458748,-516.05,0.00019506,2]
[365489143,1749701458757,-641.75,0.00019506,2]
[365489144,1749701458767,-470.0,0.00019506,2]
[365489145,1749701458778,-743.32,0.00019506,2]
[365489146,1749701458787,-642.79,0.00019506,2]
[365489147,1749701458797,-490.0,0.00019506,2]
[365489148,1749701458807,-490.0,0.00019506,2]
[365489149,1749701458816,-3728.83,0.00019506,2]
[365489150,1749701458825,-2195.41,0.00019506,2]
[365489151,1749701458835,-380.79108622,0.00019506,2]
[365489152,1749701458844,-1401.99,0.00019506,2]
[365489153,1749701458853,-490.0,0.00019506,2]
[365489154,1749701458863,-490.0,0.00019506,2]
[365489155,1749701458872,-621.04,0.00019506,2]
[365489156,1749701458881,-2106.97,0.00019506,2]
[365489157,1749701458890,-490.0,0.00019506,2]
[365489158,1749701458900,-490.0,0.00019506,2]
[365489159,1749701458910,-963.96,0.00019506,2]
[365489160,1749701458919,-490.0,0.00019506,2]
[365489161,1749701458929,-575.4,0.00019506,2]
[365489162,1749701458938,-1728.98,0.00019506,2]
[365489163,1749701458947,-827.97,0.00019506,2]
[365489164,1749701458956,-538.86968499,0.00019506,2]
[365489165,1749701458965,-490.0,0.00019506,2]
[365489166,1749701458974,-1746.55,0.00019506,2]
[365489167,1749701458983,-1704.25628026,0.00019534,2]
[365489168,1749701458992,-500.0,0.00019545,2]
[365489169,1749701459001,-170.71,0.00019609,2]
[365489170,1749701459010,-343.61,0.00019609,2]
[365489171,1749701459020,-1163.78,0.00019609,2]
[365489172,1749701459030,-1163.78,0.00019609,2]
[365489173,1749701459039,-500.0,0.00019609,2]
[365489174,1749701459048,-500.0,0.00019609,2]
[365489175,1749701459057,-500.0,0.00019609,2]
[365489176,1749701459066,-500.0,0.00019609,2]
[365489177,1749701459075,-500.0,0.00019609,2]
[365489178,1749701459084,-500.0,0.00019609,2]
[365489179,1749701459095,-500.0,0.00019609,2]
[365489180,1749701459105,-500.0,0.00019609,2]
[365489181,1749701459114,-500.0,0.00019609,2]
[365489182,1749701459123,-500.0,0.00019609,2]
[365489183,1749701459132,-500.0,0.00019609,2]
[365489184,1749701459142,-500.0,0.00019609,2]
[365489185,1749701459150,-500.0,0.00019609,2]
[365489186,1749701459160,-500.0,0.00019609,2]
[365489187,1749701459170,-500.0,0.00019609,2]
[365489188,1749701459179,-500.0,0.00019609,2]
[365489189,1749701459188,-500.0,0.00019609,2]
[365489190,1749701459197,-500.0,0.00019609,2]
[365489191,1749701459206,-500.0,0.00019609,2]
[365489192,1749701459214,-612.0,0.00019609,2]
[365489193,1749701459223,-500.0,0.00019609,2]
[365489194,1749701459232,-500.0,0.00019609,2]
[365489195,1749701459242,-505.0,0.00019609,2]
[365489196,1749701459251,-500.0,0.00019609,2]
[365489197,1749701459260,-500.0,0.00019609,2]
[365489198,1749701459269,-500.0,0.00019609,2]
[365489199,1749701459278,-500.0,0.00019609,2]
[365489200,1749701459288,-500.0,0.00019609,2]
[365489201,1749701459296,-500.0,0.00019609,2]
[365489202,1749701459305,-500.0,0.00019609,2]
[365489203,1749701459314,-500.0,0.00019609,2]
[365489204,1749701459324,-500.0,0.00019609,2]
[365489205,1749701459333,-500.0,0.00019609,2]
[365489206,1749701459342,-500.0,0.00019609,2]
[365489207,1749701459352,-500.0,0.00019609,2]
[365489208,1749701459361,-500.0,0.00019609,2]
[365489209,1749701459371,-500.0,0.00019609,2]
[365489210,1749701459380,-500.0,0.00019609,2]
[365489211,1749701459388,-500.0,0.00019609,2]
[365489212,1749701459397,-500.0,0.00019609,2]
[365489213,1749701459407,-500.0,0.00019609,2]
[365489214,1749701459416,-500.0,0.00019609,2]
[365489215,1749701459425,-500.0,0.00019609,2]
[365489216,1749701459434,-500.0,0.00019609,2]
[365489217,1749701459443,-500.0,0.00019609,2]
[365489218,1749701459453,-500.0,0.00019609,2]
[365489219,1749701459461,-500.0,0.00019609,2]
[365489220,1749701459471,-500.0,0.00019609,2]
[365489221,1749701459480,-500.0,0.00019609,2]
[365489222,1749701459489,-500.0,0.00019609,2]
[365489223,1749701459499,-500.0,0.00019609,2]
[365489224,1749701459508,-500.0,0.00019609,2]
[365489225,1749701459517,-500.0,0.00019609,2]
[365489226,1749701459528,-500.0,0.00019609,2]
[365489227,1749701459537,-500.0,0.00019609,2]
[365489228,1749701459546,-500.0,0.00019609,2]
[365489229,1749701459555,-500.0,0.00019609,2]
[365489230,1749701459565,-500.0,0.00019609,2]
[365489231,1749701459574,-500.0,0.00019609,2]
[365489232,1749701459583,-500.0,0.00019609,2]
[365489233,1749701459592,-500.0,0.00019609,2]
[365489234,1749701459601,-500.0,0.00019609,2]
[365489235,1749701459611,-500.0,0.00019609,2]
[365489236,1749701459620,-500.0,0.00019609,2]
[365489237,1749701459630,-500.0,0.00019609,2]
[365489238,1749701459639,-500.0,0.00019609,2]
[365489239,1749701459648,-500.0,0.00019609,2]
[365489240,1749701459657,-500.0,0.00019609,2]
[365489241,1749701459667,-500.0,0.00019609,2]
[365489242,1749701459676,-500.0,0.00019609,2]
[365489243,1749701459685,-500.0,0.00019609,2]
[365489244,1749701459694,-500.0,0.00019609,2]
[365489245,1749701459703,-500.0,0.00019609,2]
[365489246,1749701459713,-500.0,0.00019609,2]
[365489247,1749701459723,-500.0,0.00019609,2]
[365489248,1749701459732,-500.0,0.00019609,2]
[365489249,1749701459741,-500.0,0.00019609,2]
[365489250,1749701459751,-500.0,0.00019609,2]
[365489251,1749701459760,-500.0,0.00019609,2]
[365489252,1749701459769,-500.0,0.00019609,2]
[365489253,1749701459779,-500.0,0.00019609,2]
[365489254,1749701459789,-500.0,0.00019609,2]
[365489255,1749701459798,-500.0,0.00019609,2]
[365489256,1749701459808,-500.0,0.00019609,2]
[365489257,1749701459818,-500.0,0.00019609,2]
[365489258,1749701459827,-500.0,0.00019609,2]
[365489259,1749701459836,-500.0,0.00019609,2]
[365489260,1749701459846,-500.0,0.00019609,2]
[365489261,1749701459855,-500.0,0.00019609,2]
[365489262,1749701459865,-500.0,0.00019609,2]
[365489263,1749701459874,-500.0,0.00019609,2]
[365489264,1749701459883,-500.0,0.00019609,2]
[365489265,1749701459892,-500.0,0.00019609,2]
[365489266,1749701459902,-500.0,0.00019609,2]
[365489267,1749701459911,-500.0,0.00019609,2]
[365489268,1749701459921,-506.0,0.00019609,2]
[365489269,1749701459930,-1391.766,0.00019624,2]
[365489270,1749701459940,-176.5266635,0.00019625,2]
[365489271,1749701459949,-500.0,0.0001967,2]
[365489272,1749701459959,-766.18,0.0001967,2]
[365489273,1749701459968,-758.42,0.0001967,2]
[365489274,1749701459978,-151.0,0.00019671,2]
[365489275,1749701459987,-151.0,0.00019671,2]
[365489276,1749701459997,-151.0,0.00019671,2]
[365489277,1749701460006,-151.0,0.00019671,2]
[365489278,1749701460015,-151.0,0.00019671,2]
[365489279,1749701460025,-236.517051,0.00019671,2]
[365489280,1749701460035,-236.517051,0.00019671,2]
[365489281,1749701460044,-151.0,0.00019671,2]
[365489282,1749701460054,-151.0,0.00019671,2]
[365489283,1749701460063,-151.0,0.00019671,2]
[365489284,1749701460073,-2140.81616,0.00019671,2]
[365489285,1749701460082,-1871.654098,0.00019671,2]
[365489286,1749701460092,-753.038531,0.00019671,2]
[365489287,1749701460104,-753.038531,0.00019671,2]
[365489288,1749701460115,-532.119977,0.00019671,2]
[365489289,1749701460125,-532.119977,0.00019671,2]
[365489290,1749701460135,-604.88072552,0.00019671,2]
[365489291,1749701460145,-630.06,0.00019671,2]
[365489292,1749701460155,-490.0,0.00019671,2]
[365489293,1749701460165,-173.64371807,0.00019671,2]
[365489294,1749701460174,-460.0,0.00019671,2]
[365489295,1749701460184,-490.0,0.00019671,2]
[365489296,1749701460194,-450.0,0.00019671,2]
[365489297,1749701460204,-490.0,0.00019671,2]
[365489298,1749701460213,-469.57904811,0.00019671,2]
[365489299,1749701460223,-300.0,0.00019671,2]
[365489300,1749701460233,-490.0,0.00019671,2]
[365489301,1749701460242,-490.0,0.00019671,2]
[365489302,1749701460252,-490.0,0.00019671,2]
[365489303,1749701460261,-490.0,0.00019671,2]
[365489304,1749701460271,-490.0,0.00019671,2]
[365489305,1749701460282,-490.0,0.00019671,2]
[365489306,1749701460291,-490.0,0.00019671,2]
[365489307,1749701460301,-467.17173665,0.00019671,2]
[365489308,1749701460310,-490.0,0.00019671,2]
[365489309,1749701460320,-490.0,0.00019671,2]
[365489310,1749701460330,-513.89,0.00019671,2]
[365489311,1749701460340,-490.0,0.00019671,2]
[365489312,1749701460350,-490.0,0.00019671,2]
[365489313,1749701460360,-490.0,0.00019671,2]
[365489314,1749701460370,-490.0,0.00019671,2]
[365489315,1749701460381,-490.0,0.00019671,2]
[365489316,1749701460392,-490.0,0.00019671,2]
[365489317,1749701460402,-490.0,0.00019671,2]
[365489318,1749701460412,-490.0,0.00019671,2]
[365489319,1749701460422,-490.0,0.00019671,2]
[365489320,1749701460640,-490.0,0.00019671,2]
[365489321,1749701460650,-896.8,0.00019671,2]
[365489322,1749701460661,-700.21,0.00019671,2]
[365489323,1749701460670,-490.0,0.00019671,2]
[365489324,1749701460680,-380.12011494,0.00019671,2]
[365489325,1749701460690,-490.0,0.00019671,2]
[365489326,1749701460699,-1486.29,0.00019671,2]
[365489327,1749701460709,-793.12,0.00019671,2]
[365489328,1749701460719,-490.0,0.00019671,2]
[365489329,1749701460728,-490.0,0.00019671,2]
[365489330,1749701460739,-490.0,0.00019671,2]
[365489331,1749701460749,-490.0,0.00019671,2]
[365489332,1749701460759,-784.6,0.00019671,2]
[365489333,1749701460768,-580.22,0.00019671,2]
[365489334,1749701460778,-573.16,0.00019671,2]
[365489335,1749701460788,-404.57908091,0.00019671,2]
[365489336,1749701460797,-832.24,0.00019671,2]
[365489337,1749701460806,-490.0,0.00019671,2]
[365489338,1749701460816,-480.76417949,0.00019671,2]
[365489339,1749701460826,-752.68,0.00019671,2]
[365489340,1749701460836,-1409.48,0.00019671,2]
[365489341,1749701460846,-826.36,0.00019671,2]
[365489342,1749701460855,-490.0,0.00019671,2]
[365489343,1749701460865,-1236.0,0.00019671,2]
[365489344,1749701460875,-1209.35,0.00019671,2]
[365489345,1749701460885,-490.0,0.00019671,2]
[365489346,1749701460894,-490.0,0.00019671,2]
[365489347,1749701460903,-696.16,0.00019671,2]
[365489348,1749701460912,-583.66,0.00019671,2]
[365489349,1749701460922,-490.0,0.00019671,2]
[365489350,1749701460931,-1803.01,0.00019671,2]
[365489351,1749701460941,-843.52,0.00019671,2]
[365489352,1749701460950,-490.0,0.00019671,2]
[365489353,1749701460960,-490.0,0.00019671,2]
[365489354,1749701460969,-901.7,0.00019671,2]
[365489355,1749701460978,-1084.16,0.00019671,2]
[365489356,1749701460988,-835.84,0.00019671,2]
[365489357,1749701460997,-490.0,0.00019671,2]
[365489358,1749701461006,-912.83,0.00019671,2]
[365489359,1749701461016,-490.0,0.00019671,2]
[365489360,1749701461025,-490.0,0.00019671,2]
[365489361,1749701461036,-1394.62,0.00019671,2]
[365489362,1749701461046,-490.0,0.00019671,2]
[365489363,1749701461055,-1190.94,0.00019671,2]
[365489364,1749701461064,-1006.16,0.00019671,2]
[365489365,1749701461074,-425.19550508,0.00019671,2]
[365489366,1749701461084,-490.0,0.00019671,2]
[365489367,1749701461094,-1070.91,0.00019671,2]
[365489368,1749701461105,-490.0,0.00019671,2]
[365489369,1749701461114,-490.0,0.00019671,2]
[365489370,1749701461123,-1216.85,0.00019671,2]
[365489371,1749701461132,-490.0,0.00019671,2]
[365489372,1749701461143,-490.0,0.00019671,2]
[365489373,1749701461153,-490.0,0.00019671,2]
[365489374,1749701461162,-898.93,0.00019671,2]
[365489375,1749701461173,-602.73,0.00019671,2]
[365489376,1749701461183,-490.0,0.00019671,2]
[365489377,1749701461193,-490.0,0.00019671,2]
[365489378,1749701461202,-1183.85,0.00019671,2]
[365489379,1749701461212,-791.39,0.00019671,2]
[365489380,1749701461221,-490.0,0.00019671,2]
[365489381,1749701461230,-522.43605066,0.00019671,2]
[365489382,1749701461240,-490.0,0.00019671,2]
[365489383,1749701461250,-430.0,0.00019671,2]
[365489384,1749701461259,-490.0,0.00019671,2]
[365489385,1749701461268,-771.95,0.00019671,2]
[365489386,1749701461279,-751.34,0.00019671,2]
[365489387,1749701461288,-804.43,0.00019671,2]
[365489388,1749701461298,-1396.4,0.00019671,2]